Cogmind - Beta 14 *** ADVENTURER MODE // 2024.08.29 @ 20:11:03 Player: LegoMDS Result: Destroyed by G-34 Mercenary with Small Laser Performance ------------- Evolutions (0) 0 Regions Visited (2) 400 Robots Destroyed (15) 75 Value Destroyed (342) 342 Prototype IDs (0) 0 Alien Tech Used (0) 0 Bonus (0) 0 TOTAL SCORE: 817 Bonus ------- None Cogmind --------- Core Integrity 0/250 Matter 244/300 Energy 100/100 System Corruption 0% Temperature Cool (48) Movement Flying (37) Location -10/Mines Parts ------- > --- POWER (1) -------- (None) > --- PROPULSION (2) --- Flight Unit Flight Unit > --- UTILITY (2) ------ Small Storage Unit Weight Redist. System > --- WEAPON (2) ------- Light Assault Rifle Light Assault Rifle > --- INVENTORY (8) ---- Light Ion Engine Flight Unit Flight Unit Improved Heat Sink ECM Suite Light Assault Rifle Mining Laser Peak State ------------ > --- POWER ------------ Light Ion Engine > --- PROPULSION ------- Flight Unit Flight Unit > --- UTILITY ---------- Small Storage Unit Weight Redist. System > --- WEAPON ----------- Light Assault Rifle Light Assault Rifle > --- INVENTORY -------- Light Ion Engine Flight Unit Flight Unit Improved Heat Sink ECM Suite Light Assault Rifle Light Assault Rifle Mining Laser [Rating: 9] Favorites ----------- Power Ion Engine Engine Ion Engine Propulsion Aluminum Leg Leg Aluminum Leg Flight Unit Flight Unit Utility Small Storage Unit Device Sensor Array Storage Small Storage Unit Weapon Assault Rifle Ballistic Gun Assault Rifle Build | -11 -10 -10 ------- Run | Yrd Mat Min Slots Evolved . | . . . Power . | . . . Propulsion . | . . . Utility . | . . . Weapon . | . . . Parts Attached 15 | 6 3 6 Power 3 | 1 1 1 Engine 3 | 1 1 1 Core . | . . . Reactor . | . . . Propulsion 4 | 2 . 2 Treads . | . . . Leg 2 | 2 . . Wheel . | . . . Hover . | . . . Flight 2 | . . 2 Utility 3 | 1 1 1 Device 2 | . 1 1 Storage 1 | 1 . . Processor . | . . . Hackware . | . . . Protection . | . . . Artifact . | . . . Weapon 5 | 2 1 2 Energy Gun . | . . . Energy Cannon . | . . . Ballistic Gun 5 | 2 1 2 Ballistic Cannon . | . . . Launcher . | . . . Special Weapon . | . . . Impact Weapon . | . . . Slashing Weapon . | . . . Piercing Weapon . | . . . Special Melee Weapon . | . . . Unidentified Prototypes . | . . . Parts Lost 8 | . 3 5 Power 2 | . 1 1 Propulsion 2 | . . 2 Utility 1 | . 1 . Weapon 3 | . 1 2 Highest Loss Streak 6 | . 3 6 To Critical Strikes . | . . . Average Slot Usage (%) 92 | . 93 87 Engine 13 | . 13 14 Leg 22 | . 28 1 Flight 4 | . . 22 Device 8 | . 7 11 Storage 14 | . 14 14 Ballistic Gun 27 | . 28 23 Peak Build Rating 9 | 6 8 9 Average Rating 6 | 4 6 7 On Entrance 4 | . 6 6 Naked Turns . | . . . Heaviest Build 15 | 14 15 10 Greatest Support 20 | 20 20 14 Greatest Overweight (x) 2 | . . 2 Average Overweight (x) . | . . . Largest Inventory Capacity 8 | 8 8 8 Average Capacity 7 | 7 8 8 Most Carried 8 | 5 7 8 Average Carried 4 | 2 4 6 Final Capacity 8 | 8 8 8 Final Carried 7 | 2 5 7 Class Distribution -------------------- 86% | Mutant 13% | Scavenger-Mutant Dominant Class ---------------- Mutant | -10/Materials Scavenger-Mutant | -10/Mines Resources | -11 -10 -10 ----------- Run | Yrd Mat Min Matter Collected 510 | 223 249 38 Remotely . | . . . Salvage Created 515 | . 411 104 Parts 41 | . 27 14 Haulers Intercepted 1 | . 1 . Recyclers Shooed . | . . . Parts Field Recycled . | . . . Retrieved Matter . | . . . Parts Self-Destructed . | . . . Prevented . | . . . Kills | -11 -10 -10 ------- Run | Yrd Mat Min Combat Hostiles Destroyed 13 | . 7 6 Guns 13 | . 7 6 Classes Destroyed 4 | . 3 1 Hauler 1 | . 1 . Watcher 1 | . 1 . Swarmer 6 | . . 6 Grunt 7 | . 7 . Best Kill Streak 3 | . 3 3 Combat Bots Only 3 | . 3 3 Max Kills in Single Turn 1 | . 1 1 Gunslinging . | . . . Exploded . | . . . Melee . | . . . Uniques/NPCs Destroyed . | . . . Combat | -11 -10 -10 -------- Run | Yrd Mat Min Hostile Shots Fired 160 | . 79 81 Missed 42 | . 17 25 Damage Taken 1009 | . 606 403 Core 251 | . 123 128 Absorbed by Shields . | . . . Ignored by Resistances 318 | . 190 128 Core Remaining (%) 100 | 100 . . Volleys Fired 63 | . 36 27 Largest 2 | . 2 2 Hottest 40 | . 40 40 Shots Fired 118 | . 71 47 Gun 118 | . 71 47 Cannon . | . . . Launcher . | . . . Special . | . . . Kinetic 118 | . 71 47 Thermal . | . . . Explosive . | . . . Electromagnetic . | . . . Robot Hit Streak 15 | . 15 15 Robot Miss Streak 4 | . 1 4 Penetration Max . | . . . Secondary Targets 2 | . 1 1 Max Gunslinging Chain 1 | . 1 1 Shots Hit Robots 91 | . 57 34 Core Hits 32 | . 20 12 Critical Kills . | . . . Critical Parts Destroyed . | . . . Critical Strikes . | . . . Melee Attacks . | . . . Impact . | . . . Slashing . | . . . Piercing . | . . . Sneak Attacks . | . . . Combat Hostiles . | . . . Follow-up Attacks . | . . . Damage Inflicted 1041 | . 765 276 Guns 1041 | . 765 276 Cannons . | . . . Explosions . | . . . Melee . | . . . Ramming . | . . . Kinetic 1041 | . 765 276 Thermal . | . . . Explosive . | . . . Electromagnetic . | . . . Impact . | . . . Slashing . | . . . Piercing . | . . . Highest Corruption . | . . . Average Corruption . | . . . Corruption Purged . | . . . Corruption Blocked . | . . . Overload Shots . | . . . Overflow Damage . | . . . Projectiles . | . . . Explosions . | . . . Melee . | . . . Knockbacks . | . . . Impact . | . . . Kinetic . | . . . Secondary . | . . . Self-Inflicted Damage . | . . . Shots . | . . . Rammed . | . . . Targets Rammed . | . . . Kicked . | . . . Crushed . | . . . Highest Temperature 64 | . 42 64 Average Temperature 16 | . 8 23 Received Heat Transfer 576 | . 450 126 Siege Activations . | . . . Robots Corrupted . | . . . Combat Hostiles . | . . . Parts Fried . | . . . Impact Corruptions . | . . . Robots Melted . | . . . Combat Hostiles . | . . . Parts Melted . | . . . Heat Transferred . | . . . Parts Sabotaged . | . . . Parts Stolen . | . . . Parts Stripped . | . . . Power Chain Reactions . | . . . Alert | -11 -10 -10 ------- Run | Yrd Mat Min Peak Influence 140 | . 129 140 Initial 13 | . . 13 Average 62 | . 65 79 Maximum Alert Level . | . . . Low Security (%) 100 | 100 100 100 Level 1 . | . . . Level 2 . | . . . Level 3 . | . . . Level 4 . | . . . Level 5 . | . . . High Security . | . . . Max Security . | . . . Squads Dispatched 1 | . 1 . Investigation 1 | . 1 . Extermination . | . . . Reinforcement . | . . . Assault . | . . . Garrison . | . . . Intercept . | . . . Searches Triggered . | . . . Construction Impeded . | . . . Haulers Reinforced . | . . . Active Scanning Responses . | . . . Cargo Convoy Interrupts . | . . . Stealth | -11 -10 -10 --------- Run | Yrd Mat Min Distress Signals 1 | . 1 . Communications Jammed . | . . . Distress Signals . | . . . Times Spotted 22 | . 14 8 Peak Tracking Total 7 | . 7 3 Tactical Retreats . | . . . Traps | -11 -10 -10 ------- Run | Yrd Mat Min Traps Triggered . | . . . Indirectly . | . . . Trap Hack Attempts . | . . . Triggered . | . . . Disarmed . | . . . Reprogrammed . | . . . Reused . | . . . Traps Extracted . | . . . Installed . | . . . Triggered . | . . . Machines | -11 -10 -10 ---------- Run | Yrd Mat Min Machines Disabled . | . . . Max in Single Turn . | . . . Machines Repaired . | . . . Machines Dismantled . | . . . Machines Sabotaged . | . . . Overloaded Fab Kills . | . . . Hacking | -11 -10 -10 --------- Run | Yrd Mat Min Machines Accessed 2 | . 2 . Terminals 2 | . 2 . Fabricators . | . . . Repair Stations . | . . . Recycling Units . | . . . Scanalyzers . | . . . Garrison Access . | . . . Total Hacks 7 | . 7 . Successful . | . . . Failed 7 | . 7 . Catastrophic . | . . . Database Lockouts . | . . . Manual . | . . . Terminals 7 | . 7 . Fabricators . | . . . Repair Stations . | . . . Recycling Units . | . . . Scanalyzers . | . . . Garrison Access . | . . . Terminal Hacks . | . . . Fabricator Hacks . | . . . Repair Station Hacks . | . . . Recycling Unit Hacks . | . . . Scanalyzer . | . . . Garrison Access Hacks . | . . . Unauthorized Hacks . | . . . Terminals . | . . . Fabricators . | . . . Repair Stations . | . . . Recycling Units . | . . . Scanalyzers . | . . . Garrison Access . | . . . Data Cores Recovered . | . . . Used . | . . . Hacking Detections 2 | . 2 . Full Trace Events 2 | . 2 . Feedback Events . | . . . Feedback Blocked . | . . . Robot Schematics Acquired . | . . . Robots Built . | . . . Authchips . | . . . Time . | . . . Total Robot Build Rating . | . . . Part Schematics Acquired . | . . . Parts Built . | . . . Authchips . | . . . Time . | . . . Total Part Build Rating . | . . . Parts Repaired . | . . . Time . | . . . Parts Recycled . | . . . Recycled Matter . | . . . Retrieved Matter . | . . . Retrieved Components . | . . . Parts Scanalyzed . | . . . Part Schematics Acquired . | . . . Parts Damaged . | . . . Bothacking | -11 -10 -10 ------------ Run | Yrd Mat Min Used RIF Installer . | . . . Robots Hacked . | . . . Non-combat . | . . . Combat . | . . . Robot Hacks Applied . | . . . Relay Couplers Released . | . . . Fabnet Peak Effective % . | . . . Robots Rewired . | . . . Allies Hacked . | . . . Hacks Repelled . | . . . Allies | -11 -10 -10 -------- Run | Yrd Mat Min Total Allies . | . . . Largest Group . | . . . Highest-Rated Group . | . . . Highest-Rated Ally . | . . . Total Orders . | . . . Ally Attacks . | . . . Total Damage . | . . . Kills . | . . . Allies Corrupted . | . . . Allies Melted . | . . . Intel | -11 -10 -10 ------- Run | Yrd Mat Min Robot Analysis Total . | . . . Derelict Logs Recovered . | . . . Drone Launches . | . . . Drone Recoveries . | . . . Exploration | -11 -10 -10 ------------- Run | Yrd Mat Min Turns Passed 662 | 59 488 115 Spaces Moved 315 | 39 193 83 Core 14 | 10 . 4 Treads . | . . . Legs 222 | 29 193 . Wheels . | . . . Hover . | . . . Flight 79 | . . 79 Fastest Speed 37 | 50 120 37 Average Speed 97 | 102 120 42 Slowest Speed 150 | 120 120 150 Overloaded Moves . | . . . Propulsion Burnouts . | . . . Robots Hopped . | . . . Cave-ins Triggered . | . . . Exploration Rate (%) 21 | 3 37 24 Regions Visited 2 Branch Regions 1 Pre-discovered Areas . | . . . Known Exits Taken . | . . . Unknown Exits Taken 2 | 1 1 . Scrap Searched . | . . . Spaces Dug . | . . . Terrain Destroyed . | . . . Melee . | . . . Projectile . | . . . AOE . | . . . Terrain Rammed . | . . . Walls Destroyed . | . . . Machines Disabled . | . . . Actions | -11 -10 -10 --------- Run | Yrd Mat Min Total 562 | 58 379 125 Wait 148 | 6 142 . Move 313 | 38 192 83 Hop . | . . . Pick Up 22 | 8 6 8 Fast Attach . | . . . Attach 14 | 6 3 5 Detach . | . . . Swap 1 | . . 1 Drop 1 | . . 1 Fire 63 | . 36 27 Melee . | . . . Ram . | . . . Kick . | . . . Crush . | . . . Escape Stasis . | . . . Rewire . | . . . Trap . | . . . Miscellaneous . | . . . Route ------- -11/Scrapyard -10/Materials -10/Mines History --------- Turn | Location | Event 8 | -11/Scrapyard | Discovered new exit (range 15) 60 | -11/Scrapyard | Entered Materials 304 | -10/Materials | Build established: Mutant 536 | -10/Materials | Discovered new exit (range 7) 548 | -10/Materials | Entered Mines 555 | -10/Mines | Core integrity fell below 50% 563 | -10/Mines | Met a Derelict bent on vengeance 585 | -10/Mines | Lost 6 parts (1p2n1u2w) 640 | -10/Mines | Core integrity fell below 20% 663 | -10/Mines | Destroyed by G-34 Mercenary with Small Laser Last Messages --------------- Aluminum Leg destroyed. Assault Rifle destroyed. Aluminum Leg destroyed. S-10 Pest destroyed. Acquired Flight Unit. S-10 Pest destroyed. Acquired Flight Unit. Dropped Aluminum Leg. Acquired 20 matter. Acquired Flight Unit. Acquired Lgt. Ion Engine. Acquired 16 matter. Acquired Lgt. Assault Rifle. Acquired 2 matter. R-06 Scavenger collects Aluminum Leg. S-10 Pest destroyed. Switching to secondary target: S-10 Pest. S-10 Pest destroyed. Lgt. Assault Rifle destroyed. Lgt. Ion Engine destroyed. Map ----- +----------------------------------------------------+ | ?????????????????????????????????????????????????? | | ?????????????????????????????????????????????????? | | ?????????????????????????????????????????????????? | | ?????????????????????????????????????????????????? | | ?????????????????????????????????????????????????? | | ?????????????????????????????????????????????????? | | ?????????????????????????????????????????????????? | | ?????????????????????????????????????????????????? | | ?????????????????????????????????????????????????? | | ?????????????????????????????????????????????????? | | ?????????????????????????????????????????????????? | | ??????????????????? ????????????????????????????? | | ????????????????? #???????????????????????????? | | ????????????????# #??????????????????????????? | | ????????????????? #?????????????????????????? | | ?????????????????? #????????????????????????? | | ??????????????????# ????????????????????????? | | ?????????????????## ????????????????????????? | | ?????????????????# #????????????????????????? | | ?????????????????? ##?####??????????????????? | | ???????????????????# ## ####???????????????? | | ????????????????????# ##??????????????? | | ?????????????????????# ######?????????? | | ????????????????????## = #?????????? | | ????????????????????# =% #????????? | | ????????????????????# @ #????????? | | ????????????????????## #?????????? | | ?????????????????????# ## [* % #?????????? | | ?????????????????????# #?# =%= ?????????? | | ?????????????????????# #??##### gg ?????????? | | ?????????????????????# #????????# ??????????? | | ?????????????????????# #####??????? ??????????? | | ?????????????????????# #????????? ??????????? | | ?????????????????????# #????????????????????? | | ?????????????????????##### #????????????????????? | | ??????????????????###????# ######???????????????? | | ??????????????????? ????# #???????????????? | | ???????????????????# ????###### #???????????????? | | ???????????????????# ###??????# #???????????????? | | ???????????????????# ##?????# #???????????????? | | ???????????????????# #?????# #???????????????? | | ???????????????????# ##????# #???????????????? | | ??????????????????## ##??## ###?????????????? | | ???????????????#### #### ##????????????? | | ???????????????# ##???????????? | | ???????????????# ##??????????? | | ???????????????# ##### ## """ #??????????? | | ???????????##### ##### ### """ #??????????? | | ???????????# #?### """ #??????????? | | ???????????# ###########???# """ ##??????????? | +----------------------------------------------------+ Best States ------------- Heat Dissipation 25 Energy Generation 10 Energy Capacity 250 Matter Stores 300 Matter Capacity 300 Sight Range 16 Robot Scan Range 14 Terrain Scan Density 10 Additional Mass Support 6 Resistance: KI 20 Resistance: TH 20 Resistance: EX 20 Resistance: EM 20 Resistance: I 20 Resistance: S 20 Resistance: P 20 Evasion (%) 62 Offensive Hacking 10 Item Schematics ----------------- None Robot Schematics ------------------ None Fabricated ------------ Nothing Alien Tech Used ----------------- None Achievements -------------- None Challenges ------------ None Game ------ Seed ChromaticNavigationPit Manual? 0 Play Time 00:06:00 Cumulative 43.5 hours Start 2024.08.29 @ 20:06:31 End 2024.08.29 @ 20:11:03 Sessions 1 Manual Loads 0 Difficulty Adventurer Special Mode None Game No. 55 Rogue 13 Adventurer 42 Explorer 0 Win Type - Total 0 Types 0/0/0/0/0/0/0/0/0 Lore% 38 Gallery% 43 Achievement% 35 Wizard Run 0 Options --------- Layout 1 ASCII 0 Keyboard 0 Movement Mouse Keybinds 0 Fullscreen 1 Font 24/Smallcaps Map View 50x35 Zoom Use 0% Tactical HUD 0 Map Filters NONE Filters NONE Steam 1 RUN: b342fd2e-536b-46b9-bb1d-796c4d100aa1